Cogmind - Beta 10.2 @@@ ROGUE MODE // 2021.04.30 @ 03:32:04 Player: Exp. Geonium Core Result: Self-destructed Performance ------------- Evolutions (3) 1500 Regions Visited (4) 800 Robots Destroyed (10) 50 Value Destroyed (328) 328 Prototype IDs (0) 0 Alien Tech Used (0) 0 Bonus (470) 470 TOTAL SCORE: 3148 Bonus ------- Pacifist 470 Cogmind --------- Core Integrity 416/700 Matter 82/300 Energy 82/100 System Corruption 0% Temperature Cool (0) Movement Core (250) Ox4 Location -7/Factory Parts ------- > --- POWER (1) -------- (None) > --- PROPULSION (2) --- (None) > --- UTILITY (8) ------ Heat Sink Small Storage Unit Medium Storage Unit Advanced Signal Interpreter Improved Terrain Scan Processor System Shield > --- WEAPON (2) ------- Assault Rifle > --- INVENTORY (10) --- Heavy Ion Cannon Assault Rifle Heavy Assault Rifle Remote Datajack Peak State ------------ > --- POWER ------------ Nuclear Core > --- PROPULSION ------- Armored Huge Wheel > --- UTILITY ---------- Heat Sink Small Storage Unit Medium Storage Unit Advanced Signal Interpreter Improved Terrain Scan Processor System Shield > --- WEAPON ----------- Heavy Ion Cannon Shock Bomb Launcher > --- INVENTORY -------- Assault Rifle Assault Rifle Heavy Assault Rifle Remote Datajack [Rating: 30] Favorites ----------- Power Nuclear Core Engine Ion Engine Power Core Nuclear Core Propulsion Aluminum Leg Leg Aluminum Leg Wheel Armored Huge Wheel Utility Small Storage Unit Device Heat Sink Storage Small Storage Unit Processor Improved Terrain Scan Processor Hackware System Shield Protection Light Armor Plating Weapon Heavy Assault Rifle Energy Gun Small Laser Energy Cannon Heavy Ion Cannon Ballistic Gun Heavy Assault Rifle Launcher Shock Bomb Launcher Build | -11 -10 -9 -8 -7 ------- Run | Scr Mat Mat Mat Fac Slots Evolved 6 | . . 2 2 2 Power . | . . . . . Propulsion . | . . . . . Utility 6 | . . 2 2 2 Weapon . | . . . . . Parts Attached 19 | 6 . . 6 7 Power 2 | 1 . . 1 . Engine 1 | 1 . . . . Core 1 | . . . 1 . Reactor . | . . . . . Propulsion 3 | 2 . . . 1 Treads . | . . . . . Leg 2 | 2 . . . . Wheel 1 | . . . . 1 Hover . | . . . . . Flight . | . . . . . Utility 7 | 1 . . 3 3 Device 1 | . . . 1 . Storage 2 | 1 . . . 1 Processor 2 | . . . 1 1 Hackware 1 | . . . . 1 Protection 1 | . . . 1 . Artifact . | . . . . . Weapon 7 | 2 . . 2 3 Energy Gun 1 | 1 . . . . Energy Cannon 1 | . . . . 1 Ballistic Gun 4 | 1 . . 2 1 Ballistic Cannon . | . . . . . Launcher 1 | . . . . 1 Special Weapon . | . . . . . Impact Weapon . | . . . . . Slashing Weapon . | . . . . . Piercing Weapon . | . . . . . Special Melee Weapon . | . . . . . Unidentified Prototypes . | . . . . . Parts Lost 4 | . . . . 4 Power 1 | . . . . 1 Propulsion 1 | . . . . 1 Utility 1 | . . . . 1 Weapon 1 | . . . . 1 Highest Loss Streak 2 | . . . . 2 Average Slot Usage (%) 71 | . 85 66 67 73 Engine 2 | . 14 11 . . Core 5 | . . . 8 6 Leg 13 | . 28 22 18 3 Wheel 2 | . . . . 5 Device 4 | . . . 4 7 Storage 11 | . 14 11 9 12 Processor 7 | . . . 3 14 Protection 3 | . . . 4 5 Energy Gun 2 | . 14 11 . . Ballistic Gun 13 | . 14 11 17 11 Naked Turns . | . . . . . Heaviest Build 33 | 12 12 12 21 33 Greatest Support 28 | 20 20 20 20 28 Greatest Overweight (x) 6 | 1 . . 1 6 Average Overweight (x) . | . . . . . Largest Inventory Capacity 10 | 6 6 6 6 10 Average Capacity 7 | 5 6 6 6 8 Most Carried 4 | 1 1 1 2 4 Average Carried 2 | . 1 1 1 3 Final Capacity 10 | 6 6 6 6 10 Final Carried 4 | 1 1 1 2 4 Class Distribution -------------------- 100% | Mutant Dominant Class ---------------- Mutant | -10/Materials Mutant | -9/Materials Mutant | -8/Materials Mutant | -7/Factory Resources | -11 -10 -9 -8 -7 ----------- Run | Scr Mat Mat Mat Fac Matter Collected 265 | 80 . . 111 74 Remotely . | . . . . . Salvage Created 443 | . . . 221 222 Parts 34 | . . . 18 16 Haulers Intercepted . | . . . . . Recyclers Shooed . | . . . . . Parts Field Recycled . | . . . . . Retrieved Matter . | . . . . . Parts Self-Destructed . | . . . . . Prevented . | . . . . . Kills | -11 -10 -9 -8 -7 ------- Run | Scr Mat Mat Mat Fac Combat Hostiles Destroyed 6 | . . . 4 2 Guns 5 | . . . 4 1 AOE 1 | . . . . 1 Classes Destroyed 4 | . . . 2 2 Worker 2 | . . . . 2 Watcher 2 | . . . . 2 Grunt 3 | . . . 1 2 Sentry 3 | . . . 3 . Best Kill Streak 6 | . . . 2 6 Combat Bots Only 2 | . . . 2 1 Max Kills in Single Turn 3 | . . . 1 3 Gunslinging . | . . . . . Exploded 1 | . . . . 1 Melee . | . . . . . Uniques/NPCs Destroyed . | . . . . . Combat | -11 -10 -9 -8 -7 -------- Run | Scr Mat Mat Mat Fac Damage Taken 1308 | . . . 231 1077 Core 331 | . . . 47 284 Absorbed by Shields . | . . . . . Core Remaining (%) 97 | 100 100 100 91 . Volleys Fired 24 | . . . 12 12 Largest 2 | . . . 2 1 Hottest 46 | . . . 46 36 Shots Fired 36 | . . . 24 12 Gun 31 | . . . 24 7 Cannon . | . . . . . Launcher 5 | . . . . 5 Special . | . . . . . Kinetic 31 | . . . 24 7 Thermal . | . . . . . Explosive . | . . . . . Electromagnetic 5 | . . . . 5 Robot Hit Streak 17 | . . . 17 16 Robot Miss Streak 1 | . . . 1 . Penetration Max . | . . . . . Secondary Targets . | . . . . . Shots Hit Robots 33 | . . . 21 12 Core Hits 17 | . . . 8 9 Critical Hits 1 | . . . . 1 Critical Kills . | . . . . . Critical Parts Destroyed . | . . . . . Melee Attacks . | . . . . . Impact . | . . . . . Slashing . | . . . . . Piercing . | . . . . . Sneak Attacks . | . . . . . Combat Hostiles . | . . . . . Follow-up Attacks . | . . . . . Damage Inflicted 970 | . . . 352 618 Guns 435 | . . . 352 83 Cannons . | . . . . . Explosions 529 | . . . . 529 Melee . | . . . . . Ramming 6 | . . . . 6 Kinetic 435 | . . . 352 83 Thermal 178 | . . . . 178 Explosive . | . . . . . Electromagnetic 351 | . . . . 351 Impact . | . . . . . Slashing . | . . . . . Piercing . | . . . . . Highest Corruption . | . . . . . Average Corruption . | . . . . . Corruption Purged . | . . . . . Overload Shots . | . . . . . Overflow Damage 12 | . . . . 12 Projectiles . | . . . . . Explosions 12 | . . . . 12 Melee . | . . . . . Knockbacks . | . . . . . Impact . | . . . . . Kinetic . | . . . . . Secondary . | . . . . . Self-Inflicted Damage 17 | . . . . 17 Shots 2 | . . . . 2 Rammed 1 | . . . . 1 Targets Rammed 1 | . . . . 1 Kicked . | . . . . . Crushed . | . . . . . Highest Temperature 19 | . . . . 19 Average Temperature 10 | . . . . 10 Received Heat Transfer 390 | . . . 72 318 Siege Activations . | . . . . . Robots Corrupted . | . . . . . Combat Hostiles . | . . . . . Parts Fried 2 | . . . . 2 Impact Corruptions . | . . . . . Robots Melted . | . . . . . Combat Hostiles . | . . . . . Parts Melted . | . . . . . Heat Transferred 200 | . . . . 200 Parts Sabotaged . | . . . . . Parts Stolen . | . . . . . Parts Stripped . | . . . . . Power Chain Reactions 2 | . . . . 2 Missiles Intercepted . | . . . . . Alert | -11 -10 -9 -8 -7 ------- Run | Scr Mat Mat Mat Fac Peak Influence 247 | . 27 16 184 247 Initial 83 | . . 11 6 83 Average 78 | . 12 12 90 118 Maximum Alert Level 1 | . . . . 1 Low Security (%) 96 | 100 100 100 100 91 Level 1 3 | . . . . 8 Level 2 . | . . . . . Level 3 . | . . . . . Level 4 . | . . . . . Level 5 . | . . . . . High Security . | . . . . . Max Security . | . . . . . Squads Dispatched 2 | . . . . 2 Investigation 1 | . . . . 1 Extermination . | . . . . . Reinforcement 1 | . . . . 1 Assault . | . . . . . Garrison . | . . . . . Intercept . | . . . . . Construction Impeded . | . . . . . Haulers Reinforced . | . . . . . Stealth | -11 -10 -9 -8 -7 --------- Run | Scr Mat Mat Mat Fac Distress Signals . | . . . . . Communications Jammed . | . . . . . Distress Signals . | . . . . . Times Spotted 17 | . 2 . 5 10 Peak Tracking Total 6 | . 2 . 3 6 Tactical Retreats 3 | . . . 1 2 Traps | -11 -10 -9 -8 -7 ------- Run | Scr Mat Mat Mat Fac Traps Triggered 1 | . . . . 1 Indirectly . | . . . . . Trap Hack Attempts . | . . . . . Triggered . | . . . . . Disarmed . | . . . . . Reprogrammed . | . . . . . Reused . | . . . . . Traps Extracted . | . . . . . Installed . | . . . . . Triggered . | . . . . . Machines | -11 -10 -9 -8 -7 ---------- Run | Scr Mat Mat Mat Fac Machines Disabled . | . . . . . Max in Single Turn . | . . . . . Machines Sabotaged . | . . . . . Garrisons Compromised . | . . . . . Overloaded Fab Kills . | . . . . . Fab Network Shutdowns . | . . . . . Hacking | -11 -10 -9 -8 -7 --------- Run | Scr Mat Mat Mat Fac Machines Accessed 5 | . 2 1 1 1 Terminals 4 | . 2 1 1 . Fabricators . | . . . . . Repair Stations . | . . . . . Recycling Units . | . . . . . Scanalyzers . | . . . . . Garrison Access 1 | . . . . 1 Total Hacks 7 | . 3 1 1 2 Successful 4 | . 2 1 1 . Failed 3 | . 1 . . 2 Catastrophic 1 | . . . . 1 Database Lockouts . | . . . . . Manual 4 | . 3 . 1 . Terminals 5 | . 3 1 1 . Fabricators . | . . . . . Repair Stations . | . . . . . Recycling Units . | . . . . . Scanalyzers . | . . . . . Garrison Access 2 | . . . . 2 Terminal Hacks 4 | . 2 1 1 . Zone Layout 4 | . 2 1 1 . Fabricator Hacks . | . . . . . Repair Station Hacks . | . . . . . Recycling Unit Hacks . | . . . . . Scanalyzer . | . . . . . Garrison Access Hacks . | . . . . . Unauthorized Hacks . | . . . . . Terminals . | . . . . . Fabricators . | . . . . . Repair Stations . | . . . . . Recycling Units . | . . . . . Scanalyzers . | . . . . . Garrison Access . | . . . . . Data Cores Recovered . | . . . . . Used . | . . . . . Hacking Detections 2 | . 1 . . 1 Full Trace Events 1 | . . . . 1 Feedback Events . | . . . . . Feedback Blocked . | . . . . . Robot Schematics Acquired . | . . . . . Robots Built . | . . . . . Matter . | . . . . . Time . | . . . . . Total Robot Build Rating . | . . . . . Part Schematics Acquired . | . . . . . Parts Built . | . . . . . Matter . | . . . . . Time . | . . . . . Total Part Build Rating . | . . . . . Parts Repaired . | . . . . . Time . | . . . . . Parts Recycled . | . . . . . Recycled Matter . | . . . . . Retrieved Matter . | . . . . . Retrieved Components . | . . . . . Parts Scanalyzed . | . . . . . Part Schematics Acquired . | . . . . . Parts Damaged . | . . . . . Bothacking | -11 -10 -9 -8 -7 ------------ Run | Scr Mat Mat Mat Fac Used RIF Installer . | . . . . . Robots Hacked . | . . . . . Non-combat . | . . . . . Combat . | . . . . . Robot Hacks Applied . | . . . . . Relay Couplers Released . | . . . . . Robots Rewired . | . . . . . Allies Hacked . | . . . . . Hacks Repelled . | . . . . . Allies | -11 -10 -9 -8 -7 -------- Run | Scr Mat Mat Mat Fac Total Allies . | . . . . . Largest Group . | . . . . . Highest-Rated Group . | . . . . . Highest-Rated Ally . | . . . . . Total Orders . | . . . . . Ally Attacks . | . . . . . Total Damage . | . . . . . Kills . | . . . . . Allies Corrupted . | . . . . . Allies Melted . | . . . . . Intel | -11 -10 -9 -8 -7 ------- Run | Scr Mat Mat Mat Fac Robot Analysis Total . | . . . . . Derelict Logs Recovered . | . . . . . Drone Launches . | . . . . . Drone Recoveries . | . . . . . Exploration | -11 -10 -9 -8 -7 ------------- Run | Scr Mat Mat Mat Fac Turns Passed 835 | 51 71 104 298 311 Spaces Moved 564 | 35 60 87 162 220 Core 5 | 4 . . . 1 Treads . | . . . . . Legs 386 | 31 60 87 162 46 Wheels 173 | . . . . 173 Hover . | . . . . . Flight . | . . . . . Fastest Speed 50 | 50 120 120 120 100 Average Speed 124 | 118 120 120 136 118 Slowest Speed 350 | 150 120 120 150 350 Overloaded Moves . | . . . . . Propulsion Burnouts . | . . . . . Robots Hopped . | . . . . . Cave-ins Triggered . | . . . . . Exploration Rate (%) 13 | 4 17 14 22 11 Regions Visited 4 Branch Regions . Pre-discovered Areas . | . . . . . Known Exits Taken . | . . . . . Unknown Exits Taken 4 | 1 1 1 1 . Scrap Searched . | . . . . . Spaces Dug . | . . . . . Terrain Destroyed 5 | . . . . 5 Melee . | . . . . . Projectile . | . . . . . AOE 5 | . . . . 5 Terrain Rammed . | . . . . . Walls Destroyed . | . . . . . Machines Disabled . | . . . . . Actions | -11 -10 -9 -8 -7 --------- Run | Scr Mat Mat Mat Fac Total 655 | 41 59 86 213 256 Wait 43 | . . . 32 11 Move 560 | 34 59 86 161 220 Hop . | . . . . . Pick Up 3 | 1 . . . 2 Fast Attach 16 | 6 . . 5 5 Attach . | . . . . . Detach . | . . . . . Swap 3 | . . . 1 2 Drop 5 | . . . 2 3 Fire 24 | . . . 12 12 Melee . | . . . . . Ram 1 | . . . . 1 Kick . | . . . . . Crush . | . . . . . Escape Stasis . | . . . . . Rewire . | . . . . . Trap . | . . . . . Miscellaneous . | . . . . . Route ------- -11/Scrapyard -10/Materials -9/Materials -8/Materials -7/Factory History --------- Turn | Location | Event 27 | -11/Scrapyard | Discovered new exit (range 16) 52 | -11/Scrapyard | Entered Materials 110 | -10/Materials | Discovered new exit (range 12) 123 | -10/Materials | Entered another Materials area 123 | -9/Materials | Evolved 2 slots: Utility x2 206 | -9/Materials | Discovered new exit (range 17) 227 | -9/Materials | Entered another Materials area 227 | -8/Materials | Evolved 2 slots: Utility x2 306 | -8/Materials | Build established: Mutant 504 | -8/Materials | Discovered new exit (range 15) 525 | -8/Materials | Entered Factory 525 | -7/Factory | Evolved 2 slots: Utility x2 836 | -7/Factory | Self-destructed Last Messages --------------- 00822_ K-01 Serf collects debris. 00825_ Slammed into Y-54 Guardian. 00826_ Acquired 58 matter. 00826_ U-05 Engineer lays Concrete. 00826_ K-01 Serf collects debris. 00827_ U-05 Engineer destroyed. 00827_ K-01 Serf destroyed. 00827_ U-05 Engineer lays Concrete. 00827_ U-05 Engineer builds a Wall. 00827_ U-05 Engineer lays Concrete. 00829_ K-01 Serf collects debris. 00829_ U-05 Engineer lays Concrete. 00832_ Y-54 Guardian misfires. 00832_ K-01 Serf collects debris. 00833_ Arm. Huge Wheel destroyed. 00833_ Acquired 16 matter. 00833_ U-05 Engineer lays Concrete. 00834_ Shock Bomb Launcher destroyed. 00834_ U-05 Engineer lays Concrete. 00836_ Y-54 Guardian misfires. Map ----- +----------------------------------------------------+ | # ]!! #????????????????????? | | # """ """^ #????????????????????? | | # """ """ ^ T #????????????????????? | | + """ """ "" #????????????????????? | | # #????????????????????? | | # #????????????????????? | | # [#????????????????????? | | #######+######+#### #????????????????????? | | #????# ### ###??#######+#?????????? | | #????# #?# #??] #?????????? | | #????# """ """ #?# # ????????????? | | #????# """ """ #?# + """ "???????????????? | | ?????# """ """ ### # """ "???????????????? | | ?????# ### = #??""" "???????????????? | | ?????# """ """ ### % #????###???????????????? | | ?????# """ """ ### uu ###???##???????????????? | | ?????# """ """ ### u # ???????????????? | | ?????# ? #?# # ????????????? | | ?????# ? ?? ! #?# Y # """ """ ???????????? | | ?????#= ?? ??? #?#= # """ """ ??????????? | | ?????###??###???###?# % # """ """ #?????????? | | ????????????????????#%!*! # "" "" #?????????? | | ????????????????????#!! u=# "" "" #?????????? | | ????????????????????# ==# #?????????? | | ????????????????????# %!# #?????????? | | ????????????????????# @Y #?????????? | | ????????????????????# =!# #?????????? | | ????????????????????# # #?????????? | | ????????????????????# k ##############?????????? | | ????????????????????# ??????????????????????? | | ????????????????????# ??????????????????????? | | ????????????????????# ??????????????????????? | | ????????????????????# ??????????????????????? | | ????????????????????# ?????????????????????? | | ????????????????????# ?????????????????????? | | ????????????????????# ?????????????????????? | | ????????????????????# ?????????????????????? | | ????????????????????# ????????????????????? | | ????????????????????# ????????????????????? | | ????????????????????# ????????????????????? | | ????????????????????? u ????????????????????? | | ??????????????????????? ?????????????????????? | | ?????????????????????????????????????????????????? | | ?????????????????????????????????????????????????? | | ?????????????????????????????????????????????????? | | ?????????????????????????????????????????????????? | | ?????????????????????????????????????????????????? | | ?????????????????????????????????????????????????? | | ?????????????????????????????????????????????????? | | ?????????????????????????????????????????????????? | +----------------------------------------------------+ Best States ------------- Heat Dissipation 44 Energy Generation 14 Energy Capacity 250 Matter Stores 160 Matter Capacity 300 Sight Range 16 Terrain Scan Density 110 Armor Coverage 150 Evasion (%) 40 Defensive Hacking 10 Item Schematics ----------------- None Robot Schematics ------------------ None Fabricated ------------ Nothing Alien Tech Used ----------------- None Achievements -------------- None Challenges ------------ None Game ------ Seed AlertMetafieldExtractor Manual? 0 Play Time 00:10:59 Cumulative 81.7 hours Start 2021.04.29 @ 23:41:15 End 2021.04.30 @ 03:32:04 Sessions 3 Manual Loads 0 Difficulty Rogue Special Mode None Game No. 132 Rogue 132 Adventurer 0 Explorer 0 Win Type - Total 1 Types 1/0/0/0/0/0/0/0/0 Lore% 44 Gallery% 63 Achievement% 51 Wizard Run 0 Options --------- ASCII 0 Keyboard 0 Movement Mouse Keybinds 0 Fullscreen 1 Font 18/Terminus Map View 76x50 Tactical HUD 1 Map Filters NONE Filters NONE Steam 1 RUN: 7ace9c3a-2a00-4e59-be49-8700ee56fb79